fUST/lending_fUST_20240730
["ID","MTS","AMOUNT","RATE_DAILY","PERIOD"]
[333622322,1722291048963,-2719.03,0.00013698,2]
[333622323,1722291048977,-793.53,0.00013698,2]
[333622324,1722291048986,-151.0,0.00013698,2]
[333622325,1722291048996,-500.0,0.00013698,2]
[333622326,1722291049006,-2279.64,0.00013698,2]
[333622327,1722291049017,-500.0,0.00013698,2]
[333622328,1722291049027,-2163.85,0.00013698,2]
[333622329,1722291049037,-500.0,0.00013698,2]
[333622330,1722291049048,-500.0,0.00013698,2]
[333622331,1722291049058,-644.105706,0.00013698,2]
[333622332,1722291049067,-500.0,0.00013698,2]
[333622333,1722291049077,-511.06525515,0.00013698,2]
[333622334,1722291049087,-1329.94,0.00013698,2]
[333622335,1722291049097,-689.62,0.00013698,2]
[333622336,1722291049107,-2946.98,0.00013698,2]
[333622337,1722291049115,-500.0,0.00013698,2]
[333622338,1722291049125,-500.0,0.00013698,2]
[333622339,1722291049136,-500.0,0.00013698,2]
[333622340,1722291049145,-500.0,0.00013698,2]
[333622341,1722291049155,-500.0,0.00013698,2]
[333622342,1722291049164,-500.0,0.00013698,2]
[333622343,1722291049174,-502.54781932,0.00013698,2]
[333622344,1722291049183,-1242.87,0.00013698,2]
[333622345,1722291049193,-500.0,0.00013698,2]
[333622346,1722291049203,-699.9,0.00013698,2]
[333622347,1722291049212,-500.0,0.00013698,2]
[333622348,1722291049223,-500.0,0.00013698,2]
[333622349,1722291049232,-500.0,0.00013698,2]
[333622350,1722291049242,-513.78073335,0.00013698,2]
[333622351,1722291049252,-500.0,0.00013698,2]
[333622352,1722291049261,-555.62451421,0.00013698,2]
[333622353,1722291049271,-500.0,0.00013698,2]
[333622354,1722291049280,-500.0,0.00013698,2]
[333622355,1722291049290,-500.0,0.00013698,2]
[333622356,1722291049300,-500.0,0.00013698,2]
[333622357,1722291049310,-151.0,0.00013698,2]
[333622358,1722291049319,-508.72962201,0.00013698,2]
[333622359,1722291049328,-500.0,0.00013698,2]
[333622360,1722291049338,-1050.71,0.00013698,2]
[333622361,1722291049351,-1231.36,0.00013698,2]
[333622362,1722291049361,-500.0,0.00013698,2]
[333622363,1722291049370,-500.0,0.00013698,2]
[333622364,1722291049380,-1545.13,0.00013698,2]
[333622365,1722291049389,-871.04,0.00013698,2]
[333622366,1722291049399,-500.0,0.00013698,2]
[333622367,1722291049409,-500.0,0.00013698,2]
[333622368,1722291049418,-500.0,0.00013698,2]
[333622369,1722291049428,-151.0,0.00013698,2]
[333622370,1722291049438,-942.12,0.00013698,2]
[333622371,1722291049448,-2225.66,0.00013698,2]
[333622372,1722291049457,-500.0,0.00013698,2]
[333622373,1722291049468,-500.0,0.00013698,2]
[333622374,1722291049478,-500.0,0.00013698,2]
[333622375,1722291049487,-506.59253411,0.00013698,2]
[333622376,1722291049497,-1975.99,0.00013698,2]
[333622377,1722291049506,-500.0,0.00013698,2]
[333622378,1722291049516,-500.0,0.00013698,2]
[333622379,1722291049525,-700.87,0.00013698,2]
[333622380,1722291049536,-151.0,0.00013698,2]
[333622381,1722291049545,-960.48,0.00013698,2]
[333622382,1722291049555,-500.0,0.00013698,2]
[333622383,1722291049564,-839.428147,0.00013698,2]
[333622384,1722291049573,-500.0,0.00013698,2]
[333622385,1722291049583,-500.0,0.00013698,2]
[333622386,1722291049592,-500.0,0.00013698,2]
[333622387,1722291049603,-500.0,0.00013698,2]
[333622388,1722291049613,-839.428147,0.00013698,2]
[333622389,1722291049622,-977.78,0.00013698,2]
[333622390,1722291049632,-872.7,0.00013698,2]
[333622391,1722291049642,-151.0,0.00013698,2]
[333622392,1722291049652,-500.0,0.00013698,2]
[333622393,1722291049662,-500.0,0.00013698,2]
[333622394,1722291049671,-500.0,0.00013698,2]
[333622395,1722291049682,-505.33990903,0.00013698,2]
[333622396,1722291049692,-500.0,0.00013698,2]
[333622397,1722291049701,-500.0,0.00013698,2]
[333622398,1722291049711,-500.0,0.00013698,2]
[333622399,1722291049720,-1726.51,0.00013698,2]
[333622400,1722291049730,-12679.25,0.00013698,2]
[333622401,1722291049740,-500.0,0.00013698,2]
[333622402,1722291049750,-500.0,0.00013698,2]
[333622403,1722291049760,-500.0,0.00013698,2]
[333622404,1722291049769,-1038.12,0.00013698,2]
[333622405,1722291049780,-500.0,0.00013698,2]
[333622406,1722291049790,-500.0,0.00013698,2]
[333622407,1722291049800,-500.0,0.00013698,2]
[333622408,1722291049809,-500.0,0.00013698,2]
[333622409,1722291049819,-500.0,0.00013698,2]
[333622410,1722291049829,-500.0,0.00013698,2]
[333622411,1722291049838,-500.0,0.00013698,2]
[333622412,1722291049850,-500.0,0.00013698,2]
[333622413,1722291049860,-500.0,0.00013698,2]
[333622414,1722291049871,-468.09372308,0.00013698,2]
[333622415,1722291049881,-1803.5,0.00013698,2]
[333622416,1722291049890,-500.0,0.00013698,2]
[333622417,1722291049901,-500.0,0.00013698,2]
[333622418,1722291049913,-500.0,0.00013698,2]
[333622419,1722291049923,-500.0,0.00013698,2]
[333622420,1722291049933,-500.0,0.00013698,2]
[333622421,1722291049942,-530.01,0.00013698,2]
[333622422,1722291049953,-500.0,0.00013698,2]
[333622423,1722291049963,-1587.18,0.00013698,2]
[333622424,1722291049975,-151.0,0.00013698,2]
[333622425,1722291049984,-500.0,0.00013698,2]
[333622426,1722291049994,-500.0,0.00013698,2]
[333622427,1722291050004,-2207.88,0.00013698,2]
[333622428,1722291050014,-1355.27,0.00013698,2]
[333622429,1722291050024,-151.0,0.00013698,2]
[333622430,1722291050034,-500.0,0.00013698,2]
[333622431,1722291050043,-151.0,0.00013698,2]
[333622432,1722291050055,-500.0,0.00013698,2]
[333622433,1722291050066,-500.0,0.00013698,2]
[333622434,1722291050075,-1708.53,0.00013698,2]
[333622435,1722291050086,-202.655689,0.00013698,2]
[333622436,1722291050095,-1007.93,0.00013698,2]
[333622437,1722291050107,-1332.68,0.00013698,2]
[333622438,1722291050116,-732.1,0.00013698,2]
[333622439,1722291050126,-2028.95,0.00013698,2]
[333622440,1722291050136,-917.49,0.00013698,2]
[333622441,1722291050145,-202.655689,0.00013698,2]
[333622442,1722291050155,-151.0,0.00013698,2]
[333622443,1722291050164,-1087.19,0.00013698,2]
[333622444,1722291050174,-500.0,0.00013698,2]
[333622445,1722291050183,-500.0,0.00013698,2]
[333622446,1722291050194,-500.0,0.00013698,2]
[333622447,1722291050203,-514.24389448,0.00013698,2]
[333622448,1722291050213,-151.0,0.00013698,2]
[333622449,1722291050222,-869.76,0.00013698,2]
[333622450,1722291050231,-500.0,0.00013698,2]
[333622451,1722291050241,-500.0,0.00013698,2]
[333622452,1722291050251,-500.0,0.00013698,2]
[333622453,1722291050261,-1070.2,0.00013698,2]
[333622454,1722291050271,-151.0,0.00013698,2]
[333622455,1722291050280,-929.91,0.00013698,2]
[333622456,1722291050290,-505.20120875,0.00013698,2]
[333622457,1722291050299,-1359.91,0.00013698,2]
[333622458,1722291050309,-500.0,0.00013698,2]
[333622459,1722291050318,-500.0,0.00013698,2]
[333622460,1722291050327,-500.0,0.00013698,2]
[333622461,1722291050337,-500.0,0.00013698,2]
[333622462,1722291050349,-500.0,0.00013698,2]
[333622463,1722291050360,-500.0,0.00013698,2]
[333622464,1722291050449,-1719.97,0.00013698,2]
[333622465,1722291050460,-500.0,0.00013698,2]
[333622466,1722291050469,-504.23442038,0.00013698,2]
[333622467,1722291050479,-3551.37,0.00013698,2]
[333622468,1722291050488,-500.0,0.00013698,2]
[333622469,1722291050497,-500.0,0.00013698,2]
[333622470,1722291050506,-151.0,0.00013698,2]
[333622471,1722291050516,-151.0,0.00013698,2]
[333622472,1722291050526,-500.0,0.00013698,2]
[333622473,1722291050536,-500.0,0.00013698,2]
[333622474,1722291050545,-1821.65,0.00013698,2]
[333622475,1722291050555,-1804.44,0.00013698,2]
[333622476,1722291050564,-2276.84,0.00013698,2]
[333622477,1722291050574,-1797.96,0.00013698,2]
[333622478,1722291050583,-3553.95,0.00013698,2]
[333622479,1722291050593,-4150.2,0.00013698,2]
[333622480,1722291050603,-1715.73,0.00013698,2]
[333622481,1722291050612,-1178.87,0.00013698,2]
[333622482,1722291050622,-998.61,0.00013698,2]
[333622483,1722291050632,-500.0,0.00013698,2]
[333622484,1722291050643,-500.0,0.00013698,2]
[333622485,1722291050652,-151.0,0.00013698,2]
[333622486,1722291050661,-500.0,0.00013698,2]
[333622487,1722291050671,-500.0,0.00013698,2]
[333622488,1722291050680,-500.0,0.00013698,2]
[333622489,1722291050689,-500.0,0.00013698,2]
[333622490,1722291050699,-500.0,0.00013698,2]
[333622491,1722291050708,-500.0,0.00013698,2]
[333622492,1722291050718,-500.0,0.00013698,2]
[333622493,1722291050727,-500.0,0.00013698,2]
[333622494,1722291050737,-151.0,0.00013698,2]
[333622495,1722291050746,-806.35,0.00013698,2]
[333622496,1722291050756,-208.9928034,0.00013698,2]
[333622497,1722291050765,-500.0,0.00013698,2]
[333622498,1722291050775,-500.0,0.00013698,2]
[333622499,1722291050784,-500.0,0.00013698,2]
[333622500,1722291050794,-1854.13,0.00013698,2]
[333622501,1722291050803,-157.102728,0.00013698,2]
[333622502,1722291050813,-500.0,0.00013698,2]
[333622503,1722291050822,-500.0,0.00013698,2]
[333622504,1722291050831,-341.88,0.00013698,2]
[333622505,1722291050841,-210.3388842,0.00013698,2]
[333622506,1722291050852,-1042.62,0.00013698,2]
[333622507,1722291050862,-157.102728,0.00013698,2]
[333622508,1722291050871,-500.0,0.00013698,2]
[333622509,1722291050880,-500.0,0.00013698,2]
[333622510,1722291050890,-500.0,0.00013698,2]
[333622511,1722291050899,-500.0,0.00013698,2]
[333622512,1722291050909,-903.72,0.00013698,2]
[333622513,1722291050923,-1061.21,0.00013698,2]
[333622514,1722291050932,-535.15,0.00013698,2]
[333622515,1722291050942,-500.0,0.00013698,2]
[333622516,1722291050952,-6582.8,0.00013698,2]
[333622517,1722291050962,-500.0,0.00013698,2]
[333622518,1722291050976,-1702.04,0.00013698,2]
[333622519,1722291050986,-551.19,0.00013698,2]
[333622520,1722291050996,-500.0,0.00013698,2]
[333622521,1722291051006,-500.0,0.00013698,2]
[333622522,1722291051016,-500.0,0.00013698,2]
[333622523,1722291051026,-500.0,0.00013698,2]
[333622524,1722291051036,-274.36945872,0.00013698,2]
[333622525,1722291051045,-500.0,0.00013698,2]
[333622526,1722291051058,-650.07,0.00013698,2]
[333622527,1722291051068,-500.0,0.00013698,2]
[333622528,1722291051078,-610.43,0.00013698,2]
[333622529,1722291051087,-1458.81,0.00013698,2]
[333622530,1722291051097,-3256.58,0.00013698,2]
[333622531,1722291051107,-500.0,0.00013698,2]
[333622532,1722291051117,-500.0,0.00013698,2]
[333622533,1722291051126,-500.0,0.00013698,2]
[333622534,1722291051137,-500.0,0.00013698,2]
[333622535,1722291051147,-500.0,0.00013698,2]
[333622536,1722291051157,-500.0,0.00013698,2]
[333622537,1722291051168,-500.0,0.00013698,2]
[333622538,1722291051177,-500.0,0.00013698,2]
[333622539,1722291051187,-500.0,0.00013698,2]
[333622540,1722291051197,-500.0,0.00013698,2]
[333622541,1722291051206,-500.0,0.00013698,2]
[333622542,1722291051217,-500.0,0.00013698,2]
[333622543,1722291051226,-500.0,0.00013698,2]
[333622544,1722291051236,-500.0,0.00013698,2]
[333622545,1722291051246,-500.0,0.00013698,2]
[333622546,1722291051258,-500.0,0.00013698,2]
[333622547,1722291051268,-500.0,0.00013698,2]
[333622548,1722291051277,-262.75656386,0.00013698,2]
[333622549,1722291051287,-8997.98,0.00013698,2]
[333622550,1722291051297,-500.0,0.00013698,2]
[333622551,1722291051307,-500.0,0.00013698,2]
[333622552,1722291051317,-7664.95,0.00013698,2]
[333622553,1722291051326,-1548.65,0.00013698,2]
[333622554,1722291051336,-500.0,0.00013698,2]
[333622555,1722291051345,-500.0,0.00013698,2]
[333622556,1722291051356,-500.0,0.00013698,2]
[333622557,1722291051365,-500.0,0.00013698,2]
[333622558,1722291051375,-538.93854303,0.00013698,2]
[333622559,1722291051384,-500.0,0.00013698,2]
[333622560,1722291051394,-2076.99,0.00013698,2]
[333622561,1722291051403,-1991.53,0.00013698,2]
[333622562,1722291051413,-1911.65,0.00013698,2]
[333622563,1722291051423,-500.0,0.00013698,2]
[333622564,1722291051432,-1055.83,0.00013698,2]
[333622565,1722291051442,-500.0,0.00013698,2]
[333622566,1722291051451,-4852.03,0.00013698,2]
[333622567,1722291051461,-503.42817,0.00013698,2]
[333622568,1722291051470,-1000.75,0.00013698,2]
[333622569,1722291051480,-500.0,0.00013698,2]
[333622570,1722291051489,-1905.52,0.00013698,2]
[333622571,1722291051498,-631.12,0.00013698,2]
[333622572,1722291051509,-585.54,0.00013698,2]
[333622573,1722291051518,-505.61587435,0.00013698,2]
[333622574,1722291051527,-151.0,0.00013698,2]
[333622575,1722291051537,-606.47,0.00013698,2]
[333622576,1722291051547,-500.0,0.00013698,2]
[333622577,1722291051558,-500.0,0.00013698,2]
[333622578,1722291051567,-1126.2,0.00013698,2]
[333622579,1722291051576,-1079.87,0.00013698,2]
[333622580,1722291051586,-151.0,0.00013699,2]
[333622581,1722291051596,-151.0,0.00013699,2]
[333622582,1722291051607,-3055.851743,0.00013699,2]
[333622583,1722291051616,-355.0,0.00013699,2]
[333622584,1722291051626,-151.0,0.00013699,2]
[333622585,1722291051635,-3000.0,0.00013699,2]
[333622586,1722291051644,-151.0,0.00013699,2]
[333622587,1722291051654,-151.0,0.00013699,2]
[333622588,1722291051664,-151.0,0.00013699,2]
[333622589,1722291051673,-151.0,0.00013699,2]
[333622590,1722291051683,-151.0,0.00013699,2]
[333622591,1722291051692,-151.0,0.00013699,2]
[333622592,1722291051702,-151.0,0.00013699,2]
[333622593,1722291051712,-275.120419,0.00013699,2]
[333622594,1722291051721,-151.0,0.00013699,2]
[333622595,1722291051731,-644.105706,0.00013699,2]
[333622596,1722291051741,-310.0,0.00013699,2]
[333622597,1722291051751,-310.0,0.00013699,2]
[333622598,1722291051761,-231.325984,0.00013699,2]
[333622599,1722291051771,-839.428147,0.00013699,2]
[333622600,1722291051781,-839.428147,0.00013699,2]
[333622601,1722291051791,-1964.702872,0.00013699,2]
[333622602,1722291051801,-151.0,0.00013699,2]
[333622603,1722291051811,-151.0,0.00013699,2]
[333622604,1722291051821,-155.793561,0.00013699,2]
[333622605,1722291051830,-202.655689,0.00013699,2]
[333622606,1722291051841,-202.655689,0.00013699,2]
[333622607,1722291051851,-151.0,0.00013699,2]
[333622608,1722291051865,-151.0,0.00013699,2]
[333622609,1722291051874,-151.0,0.00013699,2]
[333622610,1722291051884,-151.0,0.00013699,2]
[333622611,1722291051894,-151.0,0.00013699,2]
[333622612,1722291051904,-151.0,0.00013699,2]
[333622613,1722291051914,-151.0,0.00013699,2]
[333622614,1722291051924,-150.112233,0.000137,2]
[333622615,1722291051934,-150.112233,0.000137,2]
[333622616,1722291051943,-150.112233,0.000137,2]
[333622617,1722291051953,-153.0,0.000137,2]
[333622618,1722291051963,-294.0793213,0.000137,2]
[333622619,1722291051976,-294.0793213,0.000137,2]
[333622620,1722291051986,-206.8246195,0.000137,2]
[333622621,1722291051996,-153.0,0.000137,2]
[333622622,1722291052006,-153.0,0.000137,2]
[333622623,1722291052017,-150.112233,0.000137,2]
[333622624,1722291052027,-150.112233,0.000137,2]
[333622625,1722291052038,-153.0,0.000137,2]
[333622626,1722291052048,-587.6191739,0.000137,2]
[333622627,1722291052059,-153.0,0.000137,2]
[333622628,1722291052150,-954.0,0.000137,2]
[333622629,1722291052160,-420.0,0.00013768,2]
[333622630,1722291052170,-500.0,0.00013799,2]
[333622631,1722291052180,-312.71802095,0.00013799,2]
[333622632,1722291052189,-150.112233,0.000138,2]
[333622633,1722291052199,-150.112233,0.000138,2]
[333622634,1722291052209,-307.7798529,0.000138,2]
[333622635,1722291052219,-150.112233,0.000138,2]
[333622636,1722291052229,-150.112233,0.000138,2]
[333622637,1722291052239,-150.112233,0.000138,2]
[333622638,1722291052248,-200.0,0.00013822,2]
[333622639,1722291052257,-200.0,0.00013822,2]
[333622640,1722291052267,-157.102728,0.00013836,2]
[333622641,1722291052278,-157.102728,0.00013836,2]
[333622642,1722291052288,-25815.1805624,0.00013836,2]
[333622643,1722291052297,-250.823,0.00013846,2]
[333622644,1722291052306,-215.85,0.00013846,2]
[333622645,1722291052315,-281.276,0.00013846,2]
[333622646,1722291052324,-273.055,0.00013846,2]
[333622647,1722291052334,-582.305,0.00013846,2]
[333622648,1722291052343,-1410.0,0.00013846,2]
[333622649,1722291052354,-3879.02120267,0.000139,2]
[333622650,1722291052363,-150.112233,0.000139,2]
[333622651,1722291052373,-150.112233,0.000139,2]
[333622652,1722291052384,-150.112233,0.000139,2]
[333622653,1722291052395,-321.45992,0.000139,2]
[333622654,1722291052407,-321.45992,0.000139,2]
[333622655,1722291052416,-151.0,0.000139,2]
[333622656,1722291052427,-150.112233,0.000139,2]
[333622657,1722291052438,-150.112233,0.000139,2]
[333622658,1722291052449,-150.112233,0.000139,2]
[333622659,1722291052460,-500.0,0.00013951,2]
[333622660,1722291052469,-500.0,0.00013961,2]
[333622661,1722291052479,-500.0,0.00013961,2]
[333622662,1722291052488,-151.0,0.00013962,2]
[333622663,1722291052497,-321.45992,0.00013962,2]
[333622664,1722291052508,-321.45992,0.00013962,2]
[333622665,1722291052519,-151.0,0.00013962,2]
[333622666,1722291052530,-151.0,0.00013962,2]
[333622667,1722291052540,-151.0,0.00013962,2]
[333622668,1722291052550,-182.501051,0.00013962,2]
[333622669,1722291052560,-151.0,0.00013962,2]
[333622670,1722291052570,-151.0,0.00013962,2]
[333622671,1722291052579,-236.173133,0.00013962,2]
[333622672,1722291052589,-151.0,0.00013962,2]
[333622673,1722291052599,-151.0,0.00013962,2]
[333622674,1722291052612,-25815.1805624,0.00013962,2]
[333622675,1722291052623,-500.0,0.00013971,2]
[333622676,1722291052632,-471.04919298,0.00013971,2]
[333622677,1722291052642,-679.81037612,0.00013972,5]
[333622678,1722291052653,-500.0,0.00013972,2]
[333622679,1722291052662,-500.0,0.00013972,2]
[333622680,1722291052672,-500.0,0.00013972,2]
[333622681,1722291052682,-500.0,0.00013972,2]
[333622682,1722291052691,-500.0,0.00013972,2]
[333622683,1722291052701,-500.0,0.00013972,2]
[333622684,1722291052710,-151.0,0.00013972,2]
[333622685,1722291052720,-151.0,0.00013972,2]
[333622686,1722291052730,-151.0,0.00013972,2]
[333622687,1722291052740,-500.0,0.00013972,2]
[333622688,1722291052751,-321.45992,0.00013972,2]
[333622689,1722291052760,-321.45992,0.00013972,2]
[333622690,1722291052770,-321.45992,0.00013972,2]
[333622691,1722291052781,-321.45992,0.00013972,2]
[333622692,1722291052790,-321.45992,0.00013972,2]
[333622693,1722291052801,-321.45992,0.00013972,2]
[333622694,1722291052810,-500.0,0.00013972,2]
[333622695,1722291052821,-506.22332503,0.00013972,2]
[333622696,1722291052833,-500.0,0.00013972,2]
[333622697,1722291052844,-500.0,0.00013972,2]
[333622698,1722291052858,-500.0,0.00013972,2]
[333622699,1722291052868,-500.0,0.00013972,2]
[333622700,1722291052879,-500.0,0.00013972,2]
[333622701,1722291052889,-343.92279372,0.00013972,2]
[333622702,1722291052898,-500.0,0.00013972,2]
[333622703,1722291052909,-500.0,0.00013972,2]
[333622704,1722291052919,-839.13,0.00013972,2]
[333622705,1722291052929,-500.0,0.00013972,2]
[333622706,1722291052941,-607.65872534,0.00013972,2]
[333622707,1722291052952,-500.0,0.00013972,2]
[333622708,1722291052962,-487.57678047,0.00013972,2]
[333622709,1722291052975,-500.0,0.00013972,2]
[333622710,1722291052986,-500.0,0.00013972,2]
[333622711,1722291052996,-500.0,0.00013972,2]
[333622712,1722291053005,-500.0,0.00013972,2]
[333622713,1722291053018,-500.0,0.00013972,2]
[333622714,1722291053029,-151.0,0.00013972,2]
[333622715,1722291053039,-151.0,0.00013972,2]
[333622716,1722291053050,-500.0,0.00013972,2]
[333622717,1722291053062,-304.08146508,0.00013972,2]
[333622718,1722291053072,-500.0,0.00013972,2]
[333622719,1722291053081,-500.0,0.00013972,2]
[333622720,1722291053090,-500.0,0.00013972,2]
[333622721,1722291053101,-500.0,0.00013972,2]
[333622722,1722291053111,-500.0,0.00013972,2]
[333622723,1722291053120,-500.0,0.00013972,2]
[333622724,1722291053130,-500.0,0.00013972,2]
[333622725,1722291053141,-500.0,0.00013972,2]
[333622726,1722291053151,-306.46452872,0.00013972,2]
[333622727,1722291053159,-500.0,0.00013972,2]
[333622728,1722291053168,-500.0,0.00013972,2]
[333622729,1722291053178,-1177.98,0.00013972,2]
[333622730,1722291053187,-151.0,0.00013972,2]
[333622731,1722291053196,-151.0,0.00013972,2]
[333622732,1722291053205,-151.0,0.00013972,2]
[333622733,1722291053215,-500.0,0.00013972,2]
[333622734,1722291053224,-161.430962,0.00013972,2]
[333622735,1722291053234,-500.0,0.00013972,2]
[333622736,1722291053244,-500.0,0.00013972,2]
[333622737,1722291053253,-500.0,0.00013972,2]
[333622738,1722291053263,-500.0,0.00013972,2]
[333622739,1722291053272,-500.0,0.00013972,2]
[333622740,1722291053282,-500.0,0.00013972,2]
[333622741,1722291053293,-500.0,0.00013972,2]
[333622742,1722291053302,-571.31,0.00013972,2]
[333622743,1722291053313,-549.36,0.00013972,2]
[333622744,1722291053324,-529.78928007,0.00013972,2]
[333622745,1722291053335,-500.0,0.00013972,2]
[333622746,1722291053347,-500.0,0.00013972,2]
[333622747,1722291053360,-515.02745838,0.00013972,2]
[333622748,1722291053369,-1002.04,0.00013972,2]
[333622749,1722291053379,-151.0,0.00013972,2]
[333622750,1722291053388,-500.0,0.00013972,2]
[333622751,1722291053397,-151.0,0.00013972,2]
[333622752,1722291053407,-151.0,0.00013972,2]
[333622753,1722291053417,-500.0,0.00013972,2]
[333622754,1722291053426,-151.0,0.00013972,2]
[333622755,1722291053435,-500.0,0.00013972,2]
[333622756,1722291053445,-500.0,0.00013972,2]
[333622757,1722291053455,-500.0,0.00013972,2]
[333622758,1722291053464,-151.0,0.00013972,2]
[333622759,1722291053474,-151.0,0.00013972,2]
[333622760,1722291053484,-333.58264193,0.00013972,2]
[333622761,1722291053494,-500.0,0.00013972,2]
[333622762,1722291053504,-500.0,0.00013972,2]
[333622763,1722291053514,-500.0,0.00013972,2]
[333622764,1722291053523,-500.0,0.00013972,2]
[333622765,1722291053533,-1397.8,0.00013972,2]
[333622766,1722291053542,-500.0,0.00013972,2]
[333622767,1722291053551,-500.0,0.00013972,2]
[333622768,1722291053561,-159.2254058,0.00013972,2]
[333622769,1722291053570,-500.0,0.00013972,2]
[333622770,1722291053579,-500.0,0.00013972,2]
[333622771,1722291053589,-500.0,0.00013972,2]
[333622772,1722291053598,-500.0,0.00013972,2]
[333622773,1722291053607,-500.0,0.00013972,2]
[333622774,1722291053616,-500.0,0.00013972,2]
[333622775,1722291053626,-500.0,0.00013972,2]
[333622776,1722291053635,-500.0,0.00013972,2]
[333622777,1722291053645,-500.0,0.00013972,2]
[333622778,1722291053654,-500.0,0.00013972,2]
[333622779,1722291053663,-500.0,0.00013972,2]
[333622780,1722291053743,-500.0,0.00013972,2]
[333622781,1722291053754,-500.0,0.00013972,2]
[333622782,1722291053764,-500.0,0.00013972,2]
[333622783,1722291053774,-500.0,0.00013972,2]
[333622784,1722291053784,-500.0,0.00013972,2]
[333622785,1722291053794,-500.0,0.00013972,2]
[333622786,1722291053804,-500.0,0.00013972,2]
[333622787,1722291053814,-218.817922,0.00013972,2]
[333622788,1722291053825,-500.0,0.00013972,2]
[333622789,1722291053837,-500.0,0.00013972,2]
[333622790,1722291053847,-500.0,0.00013972,2]
[333622791,1722291053857,-500.0,0.00013972,2]
[333622792,1722291053868,-500.0,0.00013972,2]
[333622793,1722291053878,-500.0,0.00013972,2]
[333622794,1722291053888,-500.0,0.00013972,2]
[333622795,1722291053898,-500.0,0.00013972,2]
[333622796,1722291053907,-500.0,0.00013972,2]
[333622797,1722291053917,-500.0,0.00013972,2]
[333622798,1722291053926,-596.74426326,0.00013972,2]
[333622799,1722291053936,-1113.47,0.00013972,2]
[333622800,1722291053945,-500.0,0.00013972,2]
[333622801,1722291053955,-500.0,0.00013972,2]
[333622802,1722291053965,-677.39,0.00013972,2]
[333622803,1722291053978,-500.0,0.00013972,2]
[333622804,1722291053987,-500.0,0.00013972,2]
[333622805,1722291053997,-500.0,0.00013972,2]
[333622806,1722291054006,-1247.3,0.00013972,2]
[333622807,1722291054017,-500.0,0.00013972,2]
[333622808,1722291054027,-500.0,0.00013972,2]
[333622809,1722291054036,-500.0,0.00013972,2]
[333622810,1722291054046,-500.0,0.00013972,2]
[333622811,1722291054057,-500.0,0.00013972,2]
[333622812,1722291054066,-503.91822767,0.00013972,2]
[333622813,1722291054075,-500.0,0.00013972,2]
[333622814,1722291054085,-151.0,0.00013972,2]
[333622815,1722291054094,-151.0,0.00013972,2]
[333622816,1722291054105,-151.0,0.00013972,2]
[333622817,1722291054114,-500.0,0.00013972,2]
[333622818,1722291054124,-1049.34,0.00013972,2]
[333622819,1722291054133,-500.0,0.00013972,2]
[333622820,1722291054143,-500.0,0.00013972,2]
[333622821,1722291054152,-500.0,0.00013972,2]